[Event "Titled Tuesday Blitz July 25 Early 2023"]
[White "So, Wesley"]
[Black "NikaVolkov"]
[WhiteFideId "5202213"]
[WhiteElo "3091"]
[BlackElo "2726"]
[Result "1-0"]
[Round "5"]
[TimeControl "180+2"]
[Date "2023.07.25"]
[WhiteClock "0:00:18"]
[BlackClock "0:00:16"]
[Board "19"]

1. e3 {[%clk 0:03:00]}  d5 {[%clk 0:02:55]} 2. d4 {[%clk 0:03:01]}  e6 {[%clk 0:02:56]} 3. Nf3 {[%clk 0:03:00]}  Nf6 {[%clk 0:02:56]} 4. Bd3 {[%clk 0:02:56]}  c5 {[%clk 0:02:56]} 5. O-O {[%clk 0:02:57]}  Nc6 {[%clk 0:02:56]} 6. c3 {[%clk 0:02:51]}  cxd4 {[%clk 0:02:54]} 7. exd4 {[%clk 0:02:50]}  Ne4 {[%clk 0:02:54]} 8. Re1 {[%clk 0:02:42]}  f5 {[%clk 0:02:54]} 9. Bf4 {[%clk 0:02:37]}  Bd6 {[%clk 0:02:54]} 10. Bxd6 {[%clk 0:02:37]}  Qxd6 {[%clk 0:02:55]} 11. Nbd2 {[%clk 0:02:28]}  O-O {[%clk 0:02:55]} 12. Nf1 {[%clk 0:02:24]}  Bd7 {[%clk 0:02:55]} 13. Bb5 {[%clk 0:02:20]}  Be8 {[%clk 0:02:45]} 14. Bxc6 {[%clk 0:02:19]}  bxc6 {[%clk 0:02:41]} 15. Ne5 {[%clk 0:02:20]}  c5 {[%clk 0:02:42]} 16. f3 {[%clk 0:02:19]}  Nf6 {[%clk 0:02:38]} 17. dxc5 {[%clk 0:02:15]}  Qxc5+ {[%clk 0:02:37]} 18. Qd4 {[%clk 0:02:16]}  Qxd4+ {[%clk 0:02:30]} 19. cxd4 {[%clk 0:02:17]}  Bb5 {[%clk 0:02:30]} 20. Nd2 {[%clk 0:02:15]}  Rfc8 {[%clk 0:02:30]} 21. Rac1 {[%clk 0:02:14]}  Nd7 {[%clk 0:02:21]} 22. Nxd7 {[%clk 0:02:12]}  Bxd7 {[%clk 0:02:22]} 23. Nb3 {[%clk 0:02:10]}  Kf7 {[%clk 0:02:18]} 24. Rxc8 {[%clk 0:02:06]}  Rxc8 {[%clk 0:02:18]} 25. Nc5 {[%clk 0:02:07]}  Ke7 {[%clk 0:02:17]} 26. f4 {[%clk 0:02:05]}  a5 {[%clk 0:02:16]} 27. Kf2 {[%clk 0:02:02]}  Rb8 {[%clk 0:02:16]} 28. b3 {[%clk 0:02:00]}  Rb4 {[%clk 0:02:16]} 29. Ke3 {[%clk 0:02:00]}  Kd6 {[%clk 0:02:13]} 30. Kd3 {[%clk 0:01:59]}  Rb8 {[%clk 0:02:07]} 31. Kc3 {[%clk 0:01:55]}  h6 {[%clk 0:02:07]} 32. g3 {[%clk 0:01:52]}  g5 {[%clk 0:02:07]} 33. Rf1 {[%clk 0:01:49]}  Bb5 {[%clk 0:02:00]} 34. Rf3 {[%clk 0:01:47]}  Bc6 {[%clk 0:01:58]} 35. a3 {[%clk 0:01:46]}  Rg8 {[%clk 0:01:55]} 36. a4 {[%clk 0:01:40]}  Rb8 {[%clk 0:01:48]} 37. Re3 {[%clk 0:01:38]}  Bd7 {[%clk 0:01:43]} 38. Rf3 {[%clk 0:01:38]}  Kc6 {[%clk 0:01:41]} 39. Rf2 {[%clk 0:01:35]}  Rg8 {[%clk 0:01:40]} 40. b4 {[%clk 0:01:32]}  axb4+ {[%clk 0:01:35]} 41. Kxb4 {[%clk 0:01:33]}  gxf4 {[%clk 0:01:35]} 42. gxf4 {[%clk 0:01:31]}  Rg1 {[%clk 0:01:33]} 43. Rc2 {[%clk 0:01:23]}  Rb1+ {[%clk 0:01:30]} 44. Kc3 {[%clk 0:01:14]}  Rf1 {[%clk 0:01:04]} 45. a5 {[%clk 0:00:56]}  Bc8 {[%clk 0:01:03]} 46. Kd2 {[%clk 0:00:40]}  Kd6 {[%clk 0:01:01]} 47. Ke3 {[%clk 0:00:33]}  Re1+ {[%clk 0:00:57]} 48. Kf2 {[%clk 0:00:31]}  Rd1 {[%clk 0:00:51]} 49. a6 {[%clk 0:00:29]}  Ra1 {[%clk 0:00:40]} 50. Nb3 {[%clk 0:00:27]}  Rxa6 {[%clk 0:00:35]} 51. Rxc8 {[%clk 0:00:26]}  Ra2+ {[%clk 0:00:31]} 52. Kg3 {[%clk 0:00:26]}  Rb2 {[%clk 0:00:31]} 53. Rc3 {[%clk 0:00:22]}  Re2 {[%clk 0:00:31]} 54. h3 {[%clk 0:00:19]}  Re1 {[%clk 0:00:26]} 55. Nc5 {[%clk 0:00:18]}  Rd1 {[%clk 0:00:23]} 56. Rd3 {[%clk 0:00:18]}  Rg1+ {[%clk 0:00:23]} 57. Kf2 {[%clk 0:00:18]}  Rg6 {[%clk 0:00:20]} 58. Re3 {[%clk 0:00:18]}  Ke7 {[%clk 0:00:19]} 59. Kf3 {[%clk 0:00:17]}  Kd6 {[%clk 0:00:19]} 60. h4 {[%clk 0:00:17]}  Ke7 {[%clk 0:00:16]} 61. h5 {[%clk 0:00:17]}  Rf6 {[%clk 0:00:16]} 62. Ke2 {[%clk 0:00:17]}  Kd6 {[%clk 0:00:17]} 63. Kd3 {[%clk 0:00:17]}  Ke7 {[%clk 0:00:18]} 64. Kc3 {[%clk 0:00:18]}  Kd6 {[%clk 0:00:19]} 65. Kb4 {[%clk 0:00:18]}  Ke7 {[%clk 0:00:16]} 66. Rxe6+ {[%clk 0:00:18]} 1-0


[Site "https://www.chess.com"]

[Event "Titled Tuesday Blitz July 25 Early 2023"]
[White "Fantastic_Power"]
[Black "Duda, Jan-Krzysztof"]
[BlackFideId "1170546"]
[WhiteElo "2737"]
[BlackElo "2995"]
[Result "0-1"]
[Round "5"]
[TimeControl "180+2"]
[Date "2023.07.25"]
[WhiteClock "0:00:08"]
[BlackClock "0:01:11"]
[Board "22"]

1. e4 {[%clk 0:03:00]}  c5 {[%clk 0:02:58]} 2. d4 {[%clk 0:03:00]}  cxd4 {[%clk 0:02:57]} 3. Nf3 {[%clk 0:03:01]}  e5 {[%clk 0:02:56]} 4. c3 {[%clk 0:03:01]}  dxc3 {[%clk 0:02:56]} 5. Nxc3 {[%clk 0:03:02]}  Nc6 {[%clk 0:02:55]} 6. Bc4 {[%clk 0:02:59]}  h6 {[%clk 0:02:50]} 7. Qb3 {[%clk 0:02:40]}  Qf6 {[%clk 0:02:29]} 8. Nd5 {[%clk 0:02:34]}  Qd6 {[%clk 0:02:29]} 9. Bd2 {[%clk 0:02:31]}  Nf6 {[%clk 0:02:26]} 10. O-O {[%clk 0:02:17]}  Nxe4 {[%clk 0:02:25]} 11. Rad1 {[%clk 0:02:09]}  Nc5 {[%clk 0:02:23]} 12. Qc2 {[%clk 0:02:05]}  b5 {[%clk 0:02:21]} 13. Bb3 {[%clk 0:01:53]}  Be7 {[%clk 0:02:13]} 14. Be3 {[%clk 0:01:36]}  Nxb3 {[%clk 0:02:13]} 15. Qxb3 {[%clk 0:01:29]}  O-O {[%clk 0:02:11]} 16. Qxb5 {[%clk 0:01:27]}  Rb8 {[%clk 0:02:09]} 17. Qa4 {[%clk 0:01:20]}  Rxb2 {[%clk 0:02:04]} 18. Bxa7 {[%clk 0:01:18]}  Nxa7 {[%clk 0:02:00]} 19. Qxa7 {[%clk 0:01:19]}  Bb7 {[%clk 0:02:00]} 20. Qa5 {[%clk 0:00:49]}  Re8 {[%clk 0:01:40]} 21. Qc3 {[%clk 0:00:41]}  Rxa2 {[%clk 0:01:30]} 22. Qb3 {[%clk 0:00:32]}  Ra7 {[%clk 0:01:17]} 23. Nb6 {[%clk 0:00:20]}  Qg6 {[%clk 0:01:12]} 24. Rxd7 {[%clk 0:00:08]}  Ra3 {[%clk 0:01:11]} 0-1


[Site "https://www.chess.com"]

[Event "Titled Tuesday Blitz July 25 Early 2023"]
[White "Kevlishvili, Robby"]
[Black "Skvortsov, Andrei"]
[WhiteFideId "1040634"]
[BlackFideId "24108600"]
[WhiteElo "2994"]
[BlackElo "2736"]
[Result "1-0"]
[Round "5"]
[TimeControl "180+2"]
[Date "2023.07.25"]
[WhiteClock "0:01:08"]
[BlackClock "0:00:01"]
[Board "23"]

1. Nf3 {[%clk 0:02:51]}  e6 {[%clk 0:02:53]} 2. g3 {[%clk 0:02:50]}  b5 {[%clk 0:02:52]} 3. Bg2 {[%clk 0:02:51]}  Bb7 {[%clk 0:02:52]} 4. O-O {[%clk 0:02:51]}  c5 {[%clk 0:02:50]} 5. d3 {[%clk 0:02:49]}  Be7 {[%clk 0:02:49]} 6. e4 {[%clk 0:02:49]}  d6 {[%clk 0:02:48]} 7. Nbd2 {[%clk 0:02:48]}  Nf6 {[%clk 0:02:47]} 8. Re1 {[%clk 0:02:49]}  Nbd7 {[%clk 0:02:48]} 9. Nf1 {[%clk 0:02:46]}  Qc7 {[%clk 0:02:47]} 10. h4 {[%clk 0:02:46]}  h6 {[%clk 0:02:46]} 11. c3 {[%clk 0:02:44]}  a5 {[%clk 0:02:43]} 12. Qe2 {[%clk 0:02:44]}  Ne5 {[%clk 0:02:37]} 13. a4 {[%clk 0:02:32]}  b4 {[%clk 0:02:36]} 14. Nxe5 {[%clk 0:02:31]}  dxe5 {[%clk 0:02:36]} 15. Ne3 {[%clk 0:02:32]}  Ba6 {[%clk 0:02:30]} 16. Nc4 {[%clk 0:02:22]}  O-O-O {[%clk 0:02:29]} 17. b3 {[%clk 0:02:16]}  Bxc4 {[%clk 0:02:23]} 18. dxc4 {[%clk 0:02:14]}  Nd7 {[%clk 0:02:22]} 19. h5 {[%clk 0:02:09]}  Nb8 {[%clk 0:02:22]} 20. Qg4 {[%clk 0:02:07]}  Rhg8 {[%clk 0:02:17]} 21. cxb4 {[%clk 0:01:59]}  cxb4 {[%clk 0:02:11]} 22. c5 {[%clk 0:01:59]}  Nc6 {[%clk 0:02:06]} 23. Be3 {[%clk 0:01:55]}  Nd4 {[%clk 0:01:59]} 24. Bxd4 {[%clk 0:01:55]}  Rxd4 {[%clk 0:01:57]} 25. Rac1 {[%clk 0:01:53]}  Bg5 {[%clk 0:01:55]} 26. Rc2 {[%clk 0:01:51]}  Rgd8 {[%clk 0:01:55]} 27. Bf1 {[%clk 0:01:48]}  Rd2 {[%clk 0:01:52]} 28. Re2 {[%clk 0:01:42]}  Rd1 {[%clk 0:01:52]} 29. Kg2 {[%clk 0:01:36]}  Rb1 {[%clk 0:01:45]} 30. Rb2 {[%clk 0:01:36]}  Rc1 {[%clk 0:01:34]} 31. Rec2 {[%clk 0:01:36]}  Rdd1 {[%clk 0:01:32]} 32. Ba6+ {[%clk 0:01:28]}  Kb8 {[%clk 0:01:25]} 33. Qe2 {[%clk 0:01:23]}  Ka7 {[%clk 0:01:17]} 34. c6 {[%clk 0:01:19]}  Rg1+ {[%clk 0:01:09]} 35. Kf3 {[%clk 0:01:19]}  f5 {[%clk 0:01:06]} 36. Bb7 {[%clk 0:01:10]}  Rce1 {[%clk 0:00:01]} 37. Qb5 {[%clk 0:01:08]} 1-0


[Site "https://www.chess.com"]

[Event "Titled Tuesday Blitz July 25 Early 2023"]
[White "Timmermans, Mark"]
[Black "Xiong, Jeffery"]
[WhiteFideId "1026399"]
[BlackFideId "2047640"]
[WhiteElo "2735"]
[BlackElo "2991"]
[Result "0-1"]
[Round "5"]
[TimeControl "180+2"]
[Date "2023.07.25"]
[WhiteClock "0:00:41"]
[BlackClock "0:00:19"]
[Board "24"]

1. b4 {[%clk 0:03:00]}  e5 {[%clk 0:02:58]} 2. Bb2 {[%clk 0:02:59]}  Bxb4 {[%clk 0:02:58]} 3. Bxe5 {[%clk 0:02:59]}  Nf6 {[%clk 0:02:59]} 4. Nc3 {[%clk 0:02:59]}  Ba5 {[%clk 0:02:36]} 5. e3 {[%clk 0:02:58]}  O-O {[%clk 0:02:36]} 6. Nf3 {[%clk 0:02:58]}  Re8 {[%clk 0:02:35]} 7. Be2 {[%clk 0:02:57]}  Nc6 {[%clk 0:02:35]} 8. Bxf6 {[%clk 0:02:57]}  Qxf6 {[%clk 0:02:35]} 9. Nd5 {[%clk 0:02:58]}  Qd8 {[%clk 0:02:20]} 10. O-O {[%clk 0:02:57]}  Ne5 {[%clk 0:02:18]} 11. Nxe5 {[%clk 0:02:51]}  Rxe5 {[%clk 0:02:18]} 12. c4 {[%clk 0:02:52]}  c6 {[%clk 0:02:18]} 13. d4 {[%clk 0:02:52]}  Re8 {[%clk 0:02:18]} 14. Nf4 {[%clk 0:02:52]}  d6 {[%clk 0:02:18]} 15. Bd3 {[%clk 0:02:51]}  g6 {[%clk 0:02:14]} 16. Rb1 {[%clk 0:02:40]}  c5 {[%clk 0:02:14]} 17. dxc5 {[%clk 0:02:35]}  dxc5 {[%clk 0:02:13]} 18. Be2 {[%clk 0:02:34]}  Bc7 {[%clk 0:02:09]} 19. Qxd8 {[%clk 0:02:32]}  Rxd8 {[%clk 0:02:09]} 20. Nd5 {[%clk 0:02:33]}  Bd6 {[%clk 0:02:09]} 21. Bf3 {[%clk 0:02:31]}  Kg7 {[%clk 0:02:09]} 22. Rfd1 {[%clk 0:02:30]}  Rb8 {[%clk 0:02:08]} 23. g3 {[%clk 0:02:28]}  Be6 {[%clk 0:02:08]} 24. Kg2 {[%clk 0:02:26]}  Be5 {[%clk 0:02:06]} 25. a4 {[%clk 0:02:26]}  b6 {[%clk 0:02:03]} 26. Rd2 {[%clk 0:02:18]}  Bd7 {[%clk 0:02:02]} 27. Ra2 {[%clk 0:02:08]}  Be8 {[%clk 0:02:01]} 28. Be2 {[%clk 0:02:00]}  f5 {[%clk 0:01:59]} 29. f4 {[%clk 0:01:56]}  Bf6 {[%clk 0:01:58]} 30. Bf3 {[%clk 0:01:53]}  Rd6 {[%clk 0:01:52]} 31. e4 {[%clk 0:01:47]}  fxe4 {[%clk 0:01:51]} 32. Bxe4 {[%clk 0:01:48]}  Bd4 {[%clk 0:01:52]} 33. Re1 {[%clk 0:01:39]}  Bc6 {[%clk 0:01:43]} 34. Bf3 {[%clk 0:01:38]}  Re8 {[%clk 0:01:42]} 35. Rxe8 {[%clk 0:01:36]}  Bxe8 {[%clk 0:01:43]} 36. a5 {[%clk 0:01:36]}  b5 {[%clk 0:01:43]} 37. cxb5 {[%clk 0:01:36]}  Bxb5 {[%clk 0:01:43]} 38. Nc7 {[%clk 0:01:32]}  Bd7 {[%clk 0:01:37]} 39. Rc2 {[%clk 0:01:21]}  Kf8 {[%clk 0:01:37]} 40. Be2 {[%clk 0:01:15]}  Bf5 {[%clk 0:01:27]} 41. Rc4 {[%clk 0:01:14]}  Be4+ {[%clk 0:01:24]} 42. Kf1 {[%clk 0:01:08]}  Bc6 {[%clk 0:01:24]} 43. Rc2 {[%clk 0:01:01]}  Be4 {[%clk 0:01:11]} 44. Rc4 {[%clk 0:00:58]}  Bc6 {[%clk 0:00:43]} 45. Rc2 {[%clk 0:00:58]}  Ke7 {[%clk 0:00:39]} 46. Bb5 {[%clk 0:00:56]}  Bf3 {[%clk 0:00:35]} 47. Be2 {[%clk 0:00:54]}  Be4 {[%clk 0:00:35]} 48. Rc1 {[%clk 0:00:50]}  Be3 {[%clk 0:00:26]} 49. Rc4 {[%clk 0:00:48]}  Bf5 {[%clk 0:00:19]} 50. Rc3 {[%clk 0:00:45]}  Bh3+ {[%clk 0:00:18]} 51. Ke1 {[%clk 0:00:41]}  Bd2+ {[%clk 0:00:19]} 0-1


[Site "https://www.chess.com"]

[Event "Titled Tuesday Blitz July 25 Early 2023"]
[White "Matlakov, Maxim"]
[Black "De Silva, L M S T"]
[WhiteFideId "4168003"]
[BlackFideId "9953698"]
[WhiteElo "2983"]
[BlackElo "2733"]
[Result "1-0"]
[Round "5"]
[TimeControl "180+2"]
[Date "2023.07.25"]
[WhiteClock "0:01:13"]
[BlackClock "0:00:04"]
[Board "25"]

1. d4 {[%clk 0:03:00]}  Nf6 {[%clk 0:02:58]} 2. Nf3 {[%clk 0:03:01]}  e6 {[%clk 0:02:59]} 3. e3 {[%clk 0:03:01]}  b6 {[%clk 0:02:57]} 4. Bd3 {[%clk 0:03:01]}  Bb7 {[%clk 0:02:58]} 5. Nbd2 {[%clk 0:02:58]}  d5 {[%clk 0:02:57]} 6. b3 {[%clk 0:02:58]}  Nbd7 {[%clk 0:02:56]} 7. Bb2 {[%clk 0:02:58]}  Bd6 {[%clk 0:02:56]} 8. Qe2 {[%clk 0:02:51]}  c5 {[%clk 0:02:54]} 9. O-O {[%clk 0:02:46]}  O-O {[%clk 0:02:54]} 10. Rad1 {[%clk 0:02:46]}  Qc7 {[%clk 0:02:53]} 11. c4 {[%clk 0:02:45]}  e5 {[%clk 0:02:50]} 12. dxe5 {[%clk 0:02:38]}  Nxe5 {[%clk 0:02:51]} 13. Nxe5 {[%clk 0:02:38]}  Bxe5 {[%clk 0:02:52]} 14. Bxe5 {[%clk 0:02:38]}  Qxe5 {[%clk 0:02:51]} 15. Nf3 {[%clk 0:02:38]}  Qh5 {[%clk 0:02:47]} 16. cxd5 {[%clk 0:02:37]}  Nxd5 {[%clk 0:02:32]} 17. Qb2 {[%clk 0:02:36]}  Rae8 {[%clk 0:02:21]} 18. Be2 {[%clk 0:02:32]}  Qg6 {[%clk 0:01:59]} 19. Kh1 {[%clk 0:02:11]}  Nf6 {[%clk 0:01:44]} 20. Rd6 {[%clk 0:02:05]}  Re6 {[%clk 0:01:25]} 21. Rxe6 {[%clk 0:01:49]}  fxe6 {[%clk 0:01:26]} 22. Qe5 {[%clk 0:01:46]}  Ne4 {[%clk 0:01:16]} 23. Bc4 {[%clk 0:01:31]}  Bd5 {[%clk 0:00:16]} 24. Bxd5 {[%clk 0:01:30]}  exd5 {[%clk 0:00:17]} 25. Qxd5+ {[%clk 0:01:30]}  Kh8 {[%clk 0:00:17]} 26. Kg1 {[%clk 0:01:22]}  h6 {[%clk 0:00:11]} 27. Ne5 {[%clk 0:01:22]}  Qf5 {[%clk 0:00:10]} 28. g4 {[%clk 0:01:16]}  Nc3 {[%clk 0:00:04]} 29. gxf5 {[%clk 0:01:13]} 1-0


[Site "https://www.chess.com"]

[Event "Titled Tuesday Blitz July 25 Early 2023"]
[White "Indjic, Aleksandar"]
[Black "Dehtiarov, Roman"]
[WhiteFideId "911925"]
[BlackFideId "14186640"]
[WhiteElo "2961"]
[BlackElo "2731"]
[Result "1-0"]
[Round "5"]
[TimeControl "180+2"]
[Date "2023.07.25"]
[WhiteClock "0:01:49"]
[BlackClock "0:00:00"]
[Board "26"]

1. d4 {[%clk 0:03:00]}  Nf6 {[%clk 0:03:00]} 2. Bg5 {[%clk 0:02:59]}  Ne4 {[%clk 0:02:57]} 3. h4 {[%clk 0:02:57]}  h6 {[%clk 0:02:52]} 4. Bf4 {[%clk 0:02:56]}  d5 {[%clk 0:02:53]} 5. f3 {[%clk 0:02:52]}  Nf6 {[%clk 0:02:48]} 6. e3 {[%clk 0:02:51]}  c5 {[%clk 0:02:44]} 7. c3 {[%clk 0:02:49]}  Nc6 {[%clk 0:02:43]} 8. Nd2 {[%clk 0:02:45]}  e6 {[%clk 0:02:21]} 9. g4 {[%clk 0:02:44]}  Bd6 {[%clk 0:02:21]} 10. Bxd6 {[%clk 0:02:37]}  Qxd6 {[%clk 0:02:12]} 11. f4 {[%clk 0:02:38]}  cxd4 {[%clk 0:01:26]} 12. cxd4 {[%clk 0:02:38]}  Nxd4 {[%clk 0:01:23]} 13. exd4 {[%clk 0:02:37]}  Qxf4 {[%clk 0:01:23]} 14. Bb5+ {[%clk 0:02:37]}  Kf8 {[%clk 0:01:04]} 15. Ngf3 {[%clk 0:02:36]}  Nxg4 {[%clk 0:00:51]} 16. Rg1 {[%clk 0:02:36]}  a6 {[%clk 0:00:45]} 17. Be2 {[%clk 0:02:34]}  Bd7 {[%clk 0:00:36]} 18. Qb3 {[%clk 0:02:34]}  Bb5 {[%clk 0:00:21]} 19. Bxb5 {[%clk 0:02:32]}  axb5 {[%clk 0:00:22]} 20. O-O-O {[%clk 0:02:27]}  Ne3 {[%clk 0:00:12]} 21. Qd3 {[%clk 0:02:15]}  Nxd1 {[%clk 0:00:06]} 22. Kxd1 {[%clk 0:02:15]}  Kg8 {[%clk 0:00:02]} 23. Kc2 {[%clk 0:02:11]}  Rxa2 {[%clk 0:00:01]} 24. Kb1 {[%clk 0:02:10]}  Ra8 {[%clk 0:00:01]} 25. Ne5 {[%clk 0:02:05]}  Qf5 {[%clk 0:00:01]} 26. Qxf5 {[%clk 0:02:05]}  exf5 {[%clk 0:00:02]} 27. Ndf3 {[%clk 0:01:53]}  Kh7 {[%clk 0:00:02]} 28. Nxf7 {[%clk 0:01:52]}  Rhf8 {[%clk 0:00:03]} 29. N3e5 {[%clk 0:01:51]}  Rae8 {[%clk 0:00:03]} 30. h5 {[%clk 0:01:51]}  Re7 {[%clk 0:00:01]} 31. Nd6 {[%clk 0:01:50]}  Re6 {[%clk 0:00:01]} 32. Nxb7 {[%clk 0:01:49]}  f4 {[%clk 0:00:00]} 33. Nc5 {[%clk 0:01:49]} 1-0


[Site "https://www.chess.com"]

[Event "Titled Tuesday Blitz July 25 Early 2023"]
[White "Klekowski, Maciej"]
[Black "Ibarra Jerez, Jose Carlos"]
[WhiteFideId "1132717"]
[BlackFideId "2226332"]
[WhiteElo "2726"]
[BlackElo "2937"]
[Result "1-0"]
[Round "5"]
[TimeControl "180+2"]
[Date "2023.07.25"]
[WhiteClock "0:00:04"]
[BlackClock "0:00:03"]
[Board "28"]

1. c4 {[%clk 0:03:00]}  e5 {[%clk 0:02:59]} 2. Nc3 {[%clk 0:03:00]}  Nf6 {[%clk 0:03:00]} 3. g3 {[%clk 0:03:00]}  Bb4 {[%clk 0:02:58]} 4. Bg2 {[%clk 0:03:00]}  O-O {[%clk 0:02:59]} 5. e4 {[%clk 0:03:00]}  Bc5 {[%clk 0:02:46]} 6. Nge2 {[%clk 0:02:58]}  Nc6 {[%clk 0:02:47]} 7. O-O {[%clk 0:02:58]}  a6 {[%clk 0:02:47]} 8. h3 {[%clk 0:02:57]}  d6 {[%clk 0:02:47]} 9. d3 {[%clk 0:02:55]}  b5 {[%clk 0:02:44]} 10. Kh2 {[%clk 0:02:56]}  bxc4 {[%clk 0:02:37]} 11. dxc4 {[%clk 0:02:56]}  Nd4 {[%clk 0:02:37]} 12. Be3 {[%clk 0:02:54]}  Rb8 {[%clk 0:02:30]} 13. Nxd4 {[%clk 0:02:46]}  exd4 {[%clk 0:02:29]} 14. Bxd4 {[%clk 0:02:47]}  Bxd4 {[%clk 0:02:18]} 15. Qxd4 {[%clk 0:02:48]}  Rxb2 {[%clk 0:02:17]} 16. Nd5 {[%clk 0:02:48]}  Rb8 {[%clk 0:02:03]} 17. Rab1 {[%clk 0:02:47]}  Rxb1 {[%clk 0:01:51]} 18. Nxf6+ {[%clk 0:02:43]}  Qxf6 {[%clk 0:01:50]} 19. Qxf6 {[%clk 0:02:43]}  gxf6 {[%clk 0:01:50]} 20. Rxb1 {[%clk 0:02:43]}  Be6 {[%clk 0:01:50]} 21. a3 {[%clk 0:02:32]}  Rc8 {[%clk 0:01:34]} 22. Bf1 {[%clk 0:02:31]}  f5 {[%clk 0:01:27]} 23. exf5 {[%clk 0:02:31]}  Bxf5 {[%clk 0:01:27]} 24. Rb7 {[%clk 0:02:21]}  Be4 {[%clk 0:01:22]} 25. Ra7 {[%clk 0:02:21]}  Rb8 {[%clk 0:01:22]} 26. Bg2 {[%clk 0:02:10]}  Bxg2 {[%clk 0:01:12]} 27. Kxg2 {[%clk 0:02:11]}  Rb3 {[%clk 0:01:09]} 28. Rxa6 {[%clk 0:02:11]}  Rc3 {[%clk 0:01:07]} 29. Rc6 {[%clk 0:02:11]}  Rxa3 {[%clk 0:01:03]} 30. Rxc7 {[%clk 0:02:12]}  Rc3 {[%clk 0:01:04]} 31. Rc6 {[%clk 0:02:01]}  Kf8 {[%clk 0:01:04]} 32. h4 {[%clk 0:01:39]}  Ke7 {[%clk 0:01:04]} 33. Rc8 {[%clk 0:01:39]}  d5 {[%clk 0:00:49]} 34. c5 {[%clk 0:01:37]}  d4 {[%clk 0:00:46]} 35. c6 {[%clk 0:01:29]}  d3 {[%clk 0:00:40]} 36. c7 {[%clk 0:01:23]}  Kd7 {[%clk 0:00:35]} 37. Rf8 {[%clk 0:01:14]}  d2 {[%clk 0:00:20]} 38. Rd8+ {[%clk 0:01:13]}  Ke6 {[%clk 0:00:20]} 39. Rxd2 {[%clk 0:00:52]}  Rxc7 {[%clk 0:00:21]} 40. Rd8 {[%clk 0:00:51]}  Kf6 {[%clk 0:00:21]} 41. Rg8 {[%clk 0:00:51]}  h6 {[%clk 0:00:19]} 42. g4 {[%clk 0:00:48]}  Rc3 {[%clk 0:00:19]} 43. f3 {[%clk 0:00:48]}  Ra3 {[%clk 0:00:19]} 44. Kg3 {[%clk 0:00:48]}  Ra4 {[%clk 0:00:20]} 45. Re8 {[%clk 0:00:25]}  Rc4 {[%clk 0:00:20]} 46. Re4 {[%clk 0:00:24]}  Rc1 {[%clk 0:00:18]} 47. Ra4 {[%clk 0:00:22]}  Rc6 {[%clk 0:00:18]} 48. Kf4 {[%clk 0:00:22]}  Rb6 {[%clk 0:00:18]} 49. Rc4 {[%clk 0:00:17]}  Kg6 {[%clk 0:00:18]} 50. Rc5 {[%clk 0:00:15]}  Rf6+ {[%clk 0:00:19]} 51. Ke4 {[%clk 0:00:14]}  Rb6 {[%clk 0:00:19]} 52. Kd5 {[%clk 0:00:11]}  Rb3 {[%clk 0:00:19]} 53. Rc6+ {[%clk 0:00:12]}  Kg7 {[%clk 0:00:19]} 54. Ke4 {[%clk 0:00:12]}  Rb4+ {[%clk 0:00:19]} 55. Kf5 {[%clk 0:00:12]}  Rb5+ {[%clk 0:00:20]} 56. Kf4 {[%clk 0:00:12]}  Rb4+ {[%clk 0:00:21]} 57. Kg3 {[%clk 0:00:13]}  Rb3 {[%clk 0:00:21]} 58. Rd6 {[%clk 0:00:13]}  Ra3 {[%clk 0:00:22]} 59. h5 {[%clk 0:00:11]}  Ra4 {[%clk 0:00:22]} 60. Kf2 {[%clk 0:00:11]}  Rb4 {[%clk 0:00:22]} 61. Ke3 {[%clk 0:00:11]}  Ra4 {[%clk 0:00:22]} 62. Rd4 {[%clk 0:00:11]}  Ra6 {[%clk 0:00:22]} 63. Ke4 {[%clk 0:00:12]}  Kf6 {[%clk 0:00:22]} 64. Rc4 {[%clk 0:00:10]}  Re6+ {[%clk 0:00:22]} 65. Kd5 {[%clk 0:00:09]}  Re3 {[%clk 0:00:21]} 66. Rf4+ {[%clk 0:00:09]}  Kg7 {[%clk 0:00:20]} 67. Kd4 {[%clk 0:00:09]}  Re1 {[%clk 0:00:20]} 68. Re4 {[%clk 0:00:09]}  Rf1 {[%clk 0:00:20]} 69. Ke3 {[%clk 0:00:10]}  Ra1 {[%clk 0:00:20]} 70. Kf4 {[%clk 0:00:10]}  Ra5 {[%clk 0:00:21]} 71. Re5 {[%clk 0:00:11]}  Ra3 {[%clk 0:00:21]} 72. Rd5 {[%clk 0:00:09]}  Kf6 {[%clk 0:00:21]} 73. Ke4 {[%clk 0:00:07]}  Ra4+ {[%clk 0:00:20]} 74. Rd4 {[%clk 0:00:08]}  Ra3 {[%clk 0:00:20]} 75. Rd6+ {[%clk 0:00:07]}  Kg7 {[%clk 0:00:19]} 76. Rd5 {[%clk 0:00:07]}  Ra4+ {[%clk 0:00:20]} 77. Kf5 {[%clk 0:00:07]}  Ra3 {[%clk 0:00:20]} 78. f4 {[%clk 0:00:07]}  Ra6 {[%clk 0:00:21]} 79. g5 {[%clk 0:00:06]}  Ra1 {[%clk 0:00:21]} 80. g6 {[%clk 0:00:05]}  Ra7 {[%clk 0:00:15]} 81. Rd6 {[%clk 0:00:04]}  Ra5+ {[%clk 0:00:14]} 82. Kg4 {[%clk 0:00:05]}  Ra7 {[%clk 0:00:15]} 83. f5 {[%clk 0:00:04]}  Ra4+ {[%clk 0:00:14]} 84. Kf3 {[%clk 0:00:05]}  f6 {[%clk 0:00:11]} 85. Rd7+ {[%clk 0:00:05]}  Kg8 {[%clk 0:00:12]} 86. Rf7 {[%clk 0:00:05]}  Ra6 {[%clk 0:00:12]} 87. Ke4 {[%clk 0:00:05]}  Rb6 {[%clk 0:00:12]} 88. Kd5 {[%clk 0:00:04]}  Ra6 {[%clk 0:00:13]} 89. Rd7 {[%clk 0:00:03]}  Kf8 {[%clk 0:00:11]} 90. Rd6 {[%clk 0:00:03]}  Ra1 {[%clk 0:00:04]} 91. Ke6 {[%clk 0:00:04]}  Rh1 {[%clk 0:00:03]} 92. Kxf6 {[%clk 0:00:04]}  Rxh5 {[%clk 0:00:03]} 93. Rd8# {[%clk 0:00:04]} 1-0


[Site "https://www.chess.com"]

[Event "Titled Tuesday Blitz July 25 Early 2023"]
[White "Darini, Pouria"]
[Black "Gholami Orimi, Mahdi"]
[WhiteFideId "12502200"]
[BlackFideId "12558486"]
[WhiteElo "2718"]
[BlackElo "2901"]
[Result "0-1"]
[Round "5"]
[TimeControl "180+2"]
[Date "2023.07.25"]
[WhiteClock "0:00:17"]
[BlackClock "0:00:25"]
[Board "30"]

1. e4 {[%clk 0:03:00]}  g6 {[%clk 0:02:55]} 2. d4 {[%clk 0:03:01]}  Bg7 {[%clk 0:02:54]} 3. Nc3 {[%clk 0:02:59]}  d6 {[%clk 0:02:54]} 4. Be3 {[%clk 0:02:58]}  a6 {[%clk 0:02:54]} 5. Qd2 {[%clk 0:02:56]}  b5 {[%clk 0:02:52]} 6. h4 {[%clk 0:02:55]}  Bb7 {[%clk 0:02:49]} 7. h5 {[%clk 0:02:47]}  b4 {[%clk 0:02:45]} 8. Nd5 {[%clk 0:02:47]}  e6 {[%clk 0:02:27]} 9. Nxb4 {[%clk 0:02:36]}  Bxe4 {[%clk 0:02:22]} 10. Nf3 {[%clk 0:02:28]}  gxh5 {[%clk 0:02:17]} 11. Nd3 {[%clk 0:02:22]}  Nf6 {[%clk 0:02:15]} 12. Nf4 {[%clk 0:02:22]}  Bg6 {[%clk 0:02:14]} 13. Bd3 {[%clk 0:02:22]}  Nbd7 {[%clk 0:02:13]} 14. Nh3 {[%clk 0:01:56]}  Qb8 {[%clk 0:02:09]} 15. Rb1 {[%clk 0:01:46]}  Nd5 {[%clk 0:01:58]} 16. Bh6 {[%clk 0:01:41]}  Bxh6 {[%clk 0:01:42]} 17. Qxh6 {[%clk 0:01:42]}  Bxd3 {[%clk 0:01:42]} 18. cxd3 {[%clk 0:01:43]}  Nc3 {[%clk 0:01:32]} 19. Ra1 {[%clk 0:01:21]}  Qxb2 {[%clk 0:01:29]} 20. O-O {[%clk 0:01:22]}  Qb5 {[%clk 0:01:03]} 21. Qg7 {[%clk 0:00:52]}  Ke7 {[%clk 0:00:53]} 22. d5 {[%clk 0:00:52]}  Ne2+ {[%clk 0:00:46]} 23. Kh1 {[%clk 0:00:50]}  Rag8 {[%clk 0:00:47]} 24. Qh6 {[%clk 0:00:46]}  Qxd5 {[%clk 0:00:37]} 25. Rae1 {[%clk 0:00:45]}  Rxg2 {[%clk 0:00:33]} 26. Kxg2 {[%clk 0:00:35]}  Rg8+ {[%clk 0:00:31]} 27. Ng5 {[%clk 0:00:36]}  Rg6 {[%clk 0:00:28]} 28. Qxh7 {[%clk 0:00:32]}  Rxg5+ {[%clk 0:00:27]} 29. Kh2 {[%clk 0:00:17]}  Qxf3 {[%clk 0:00:25]} 0-1


[Site "https://www.chess.com"]